bitfinex/quotes_SOLUSD_20240811
["timestamp","ask_amount","ask_price","bid_price","bid_amount"]
[1723404955543,4.7739,146.63,146.58,7.427]
[1723404955743,20.0,146.64,146.58,7.427]
[1723404956151,24.7736,146.64,146.58,7.427]
[1723404956355,45.37647,146.63,146.58,7.427]
[1723404956765,45.12549,146.62,146.55,18.7781]
[1723404957070,4.7749,146.6,146.55,18.7781]
[1723404957271,45.12549,146.62,146.55,18.7781]
[1723404957272,20.0,146.61,146.55,18.7781]
[1723404957873,27.59,146.63,146.55,18.7781]
[1723404958175,20.0,146.62,146.55,18.7781]
[1723404958466,24.774,146.63,146.55,18.7781]
[1723404958646,50.27636,146.62,146.55,18.7781]
[1723404958848,27.59,146.6,146.54,7.427]
[1723404959054,32.3658,146.58,146.54,7.427]
[1723404959250,27.59,146.56,146.51,17.2747]
[1723404959455,4.7766,146.55,146.51,17.2747]
[1723404959662,32.3662,146.56,146.51,17.2747]
[1723404959866,27.59,146.56,146.51,17.2747]
[1723404960172,45.0,146.55,146.51,17.2747]
[1723404960344,4.7774,146.53,146.5,7.427]
[1723404960550,32.3671,146.54,146.47,17.2747]
[1723404960749,27.59,146.54,146.47,17.2747]
[1723404960978,45.0,146.55,146.47,18.63983801]
[1723404961267,45.0,146.55,146.47,17.2747]
[1723404961874,45.0,146.55,146.47,18.6398417]
[1723404962666,4.7763,146.56,146.47,18.6398417]
[1723404962869,20.0,146.56,146.48,27.59]
[1723404963168,20.0,146.57,146.5,27.59]
[1723404963381,27.59,146.62,146.52,35.017]
[1723404963550,4.7742,146.62,146.53,1.36445779]
[1723404964144,4.7739,146.63,146.55,17.2747]
[1723404964348,4.7748,146.61,146.55,17.2747]
[1723404964774,4.7749,146.6,146.55,17.2747]
[1723404964949,27.59,146.58,146.52,7.427]
[1723404965152,4.7765,146.55,146.52,7.427]
[1723404965352,4.7762,146.56,146.52,7.427]
[1723404966250,32.3651,146.6,146.52,7.427]
[1723404966449,65.0,146.59,146.52,7.427]
[1723404966673,0.12549,146.61,146.52,35.017]
[1723404966880,45.0,146.61,146.52,35.017]
[1723404967266,4.7745,146.62,146.54,27.59]
[1723404967591,27.59,146.64,146.53,0.25098]
[1723404967592,4.775,146.6,146.53,0.25098]
[1723404968078,4.7746,146.61,146.53,0.25098]
[1723404968277,4.7743,146.62,146.53,0.25098]
[1723404968466,4.7743,146.62,146.53,45.25098]
[1723404968666,4.7743,146.62,146.54,27.59]
[1723404968866,4.7747,146.61,146.54,27.59]
[1723404969593,4.7759,146.57,146.52,7.427]
[1723404970155,27.59,146.58,146.52,7.427]
[1723404970382,4.7768,146.55,146.52,7.427]
[1723404970678,4.778,146.51,146.49,7.1642]
[1723404971066,4.7775,146.52,146.49,7.1642]
[1723404971259,27.59,146.58,146.49,7.1642]
[1723404971483,4.7765,146.55,146.49,7.1642]
[1723404972083,20.12549,146.57,146.49,7.1642]
[1723404972284,4.7752,146.59,146.5,27.59]
[1723404972492,4.7756,146.58,146.5,27.59]
[1723404972703,0.25098,146.57,146.49,7.1642]
[1723404972905,4.7762,146.56,146.49,7.1642]
[1723404973079,49.7766,146.55,146.49,7.1642]
[1723404973281,27.59,146.6,146.5,1.36501765]
[1723404973499,4.7755,146.58,146.5,1.36501765]
[1723404973810,24.7755,146.58,146.5,1.36501765]
[1723404974212,27.59,146.62,146.5,27.59]
[1723404974387,27.59,146.62,146.49,8.52901631]
[1723404974388,39.524,146.64,146.52,27.59]
[1723404974698,4.7751,146.6,146.52,27.59]
[1723404975308,4.7753,146.59,146.52,27.59]
[1723404976204,4.7749,146.6,146.52,27.59]
[1723404977003,4.7741,146.63,146.55,18.7617]
[1723404977182,27.59,146.66,146.57,7.1317]
[1723404977387,32.363,146.66,146.57,8.49598175]
[1723404977588,27.59,146.66,146.58,1.36418867]
[1723404978189,20.0,146.65,146.58,1.36418867]
[1723404978404,32.363,146.66,146.58,1.36418867]
[1723404978590,27.59,146.66,146.57,7.1317]
[1723404978790,4.7736,146.64,146.57,7.1317]
[1723404979011,4.7733,146.65,146.57,7.1317]
[1723404979588,32.3629,146.66,146.57,7.1317]
[1723404979802,20.0,146.65,146.57,7.1317]
[1723404980005,20.0,146.65,146.55,18.7617]
[1723404980196,27.59,146.59,146.55,18.7617]
[1723404980913,27.59,146.61,146.55,18.7617]
[1723404981116,20.0,146.65,146.55,18.7617]
[1723404981308,47.59,146.65,146.55,18.7617]
[1723404981891,47.59,146.65,146.55,20.12597036]
[1723404982411,47.59,146.65,146.56,27.59]
[1723404982634,7.09071632,146.68,146.58,27.59]
[1723404982821,7.09071632,146.68,146.6,27.59]
[1723404983114,7.09071632,146.68,146.59,7.1317]
[1723404983809,27.59,146.65,146.59,7.1317]
[1723404984016,27.59,146.61,146.55,25.8934]
[1723404984208,27.59,146.59,146.55,7.1317]
[1723404984409,32.366,146.57,146.51,25.8934]
[1723404984923,27.59,146.55,146.51,25.8934]
[1723404985091,45.0,146.54,146.51,7.1317]
[1723404985290,27.59,146.55,146.51,7.1317]
[1723404985492,0.12549,146.56,146.51,7.1317]
[1723404985786,20.12549,146.56,146.51,7.1317]
[1723404986004,27.59,146.57,146.51,7.1317]
[1723404986206,4.7749,146.6,146.51,7.1317]
[1723404986417,45.0,146.59,146.51,7.1317]
[1723404986624,20.0,146.58,146.51,7.1317]
[1723404987121,45.0,146.59,146.51,7.1317]
[1723404987122,27.59,146.63,146.52,27.71549]
[1723404987423,4.7745,146.62,146.52,27.59]
[1723404987820,27.59,146.61,146.52,27.59]
[1723404988020,27.59,146.61,146.51,7.1317]
[1723404988226,27.59,146.61,146.52,0.25098]
[1723404988422,4.7739,146.63,146.52,27.71549]
[1723404988423,32.3641,146.63,146.52,27.71549]
[1723404988602,45.0,146.62,146.52,27.59]
[1723404988803,49.7745,146.62,146.52,27.59]
[1723404989002,45.0,146.62,146.52,27.59]
[1723404989227,20.0,146.61,146.52,27.59]
[1723404989429,20.0,146.61,146.51,7.1317]
[1723404989430,45.0,146.6,146.51,7.1317]
[1723404990525,27.59,146.57,146.51,7.1317]
[1723404990831,27.84098,146.59,146.51,7.1317]
[1723404991124,653.45729012,146.65,146.53,18.0117]
[1723404991333,47.59,146.64,146.54,27.59]
[1723404991907,27.59,146.66,146.54,27.59]
[1723404992302,32.363,146.66,146.56,27.59]
[1723404992511,27.59,146.68,146.56,27.59]
[1723404992715,4.7726,146.67,146.56,27.59]
[1723404992914,4.7726,146.67,146.55,0.37647]
[1723404992915,27.59,146.68,146.58,27.59]
[1723404993315,32.3623,146.68,146.58,27.59]
[1723404993719,7.91800446,146.69,146.59,0.25098]
[1723404993911,7.91800446,146.69,146.6,27.59]
[1723404994110,20.21574678,146.69,146.6,27.59]
[1723404994411,20.21574678,146.69,146.61,17.628]
[1723404994717,20.21574678,146.69,146.62,0.52969808]
[1723404994718,7.91800446,146.69,146.62,0.52969808]
[1723404995112,7.91800446,146.69,146.61,17.628]
[1723404996012,7.91800446,146.69,146.62,34.9179]
[1723404996635,7.91800446,146.69,146.63,0.42587186]
[1723404997019,7.91800446,146.69,146.62,35.40085219]
[1723404997533,7.91800446,146.69,146.62,34.9179]
[1723404998129,7.91800446,146.69,146.63,0.12549]
[1723404998426,7.91800446,146.69,146.63,0.25098]
[1723404998634,7.91800446,146.69,146.62,7.3279]
[1723404998930,27.59,146.66,146.62,7.3279]
[1723404999814,4.7739,146.63,146.53,24.9559]
[1723405000114,45.0,146.65,146.54,27.59]
[1723405000315,0.12549,146.64,146.53,24.9559]
[1723405000540,27.59,146.63,146.53,24.9559]
[1723405000714,27.59,146.61,146.53,24.9559]
[1723405002411,27.59,146.57,146.53,24.9559]
[1723405002612,27.59,146.55,146.49,7.3279]
[1723405002842,0.12549,146.58,146.49,7.3279]
[1723405002843,27.59,146.53,146.49,7.3279]
[1723405003048,27.59,146.51,146.42,24.9559]
[1723405003338,0.37647,146.56,146.42,24.9559]
[1723405003339,27.59,146.49,146.42,24.9559]
[1723405003942,72.59,146.48,146.42,24.9559]
[1723405004144,27.59,146.48,146.42,24.9559]
[1723405004439,27.59,146.46,146.42,7.3279]
[1723405005341,27.59,146.48,146.42,7.3279]
[1723405005514,45.0,146.47,146.42,7.3279]
[1723405005717,27.59,146.48,146.42,7.3279]
[1723405005934,0.37647,146.49,146.42,7.3279]
[1723405006120,65.37647,146.49,146.42,7.3279]
[1723405006325,65.25098,146.49,146.42,7.3279]
[1723405006836,20.0,146.49,146.42,7.3279]
[1723405007348,24.7786,146.49,146.42,7.3279]
[1723405007647,20.0,146.49,146.42,7.3279]
[1723405008027,45.0,146.48,146.42,7.3279]
[1723405008737,32.96,146.56,146.42,7.3279]
[1723405009728,4.7775,146.52,146.42,7.3279]
[1723405009935,45.25098,146.51,146.42,7.3279]
[1723405010245,4.7775,146.52,146.42,7.3279]
[1723405010246,20.0,146.54,146.43,45.12549]
[1723405010464,4.7768,146.54,146.44,0.25098]
[1723405011049,20.0,146.55,146.44,0.25098]
[1723405011251,51.585,146.59,146.46,17.4232]
[1723405011436,4.7761,146.57,146.46,17.4232]
[1723405011639,4.7763,146.56,146.46,17.4232]
[1723405013232,45.0,146.55,146.46,17.4232]
[1723405013447,20.0,146.54,146.46,17.4232]
[1723405013648,0.25098,146.53,146.46,17.4232]
[1723405013847,0.12549,146.52,146.46,17.4232]
[1723405015051,0.12549,146.51,146.46,17.4232]
[1723405015248,4.7782,146.5,146.42,7.3279]
[1723405015439,45.0,146.49,146.42,7.3279]
[1723405015932,0.12549,146.51,146.42,7.3279]
[1723405016136,45.12549,146.51,146.42,7.3279]
[1723405016432,0.25098,146.5,146.42,7.3279]
[1723405017561,20.0,146.52,146.43,1.36532958]
[1723405017741,4.7759,146.57,146.44,0.25098]
[1723405018130,4.7759,146.57,146.45,0.12549]
[1723405018471,4.7759,146.57,146.46,32.96]
[1723405018652,4.7759,146.57,146.47,1.36492884]
[1723405019241,7.09520403,146.59,146.49,17.8795]
[1723405019452,32.96,146.61,146.5,1.3646938]
[1723405020176,260.6,146.65,146.51,0.12549]
[1723405020559,267.68965771,146.65,146.5,46.44955158]
[1723405021472,4.7759,146.57,146.49,17.8795]
[1723405021758,0.12549,146.6,146.5,1.32374782]
[1723405021946,45.37647,146.6,146.5,1.32374782]
[1723405022148,4.7748,146.61,146.5,1.32374782]
[1723405022333,20.0,146.64,146.51,0.50196]
[1723405022677,4.7742,146.62,146.53,6.9752]
[1723405023163,293.56,146.65,146.53,6.9752]
[1723405023164,4.7746,146.61,146.53,6.9752]
[1723405023535,4.7749,146.6,146.53,6.9752]
[1723405023967,4.7753,146.59,146.53,6.9752]
[1723405024471,45.12549,146.58,146.53,6.9752]
[1723405024663,49.7758,146.58,146.53,6.9752]
[1723405024846,4.7768,146.55,146.5,6.9752]
[1723405025057,0.12549,146.53,146.5,6.9752]
[1723405025256,0.12549,146.53,146.4,32.96]
[1723405025257,0.12549,146.52,146.41,24.8547]
[1723405025459,45.25098,146.52,146.41,24.8547]
[1723405025958,27.57549,146.51,146.41,24.8547]
[1723405026268,45.37647,146.5,146.41,24.8547]
[1723405026466,47.45,146.53,146.42,27.45]
[1723405026644,45.37647,146.52,146.42,27.45]
[1723405026846,0.12549,146.56,146.46,27.45]
[1723405027048,65.50196,146.56,146.46,27.45]
[1723405027781,70.27826,146.56,146.46,27.45]
[1723405027943,4.7765,146.55,146.46,27.45]
[1723405028143,70.27816,146.56,146.46,27.45]
[1723405028371,20.0,146.56,146.48,27.45]
[1723405028539,32.2246,146.61,146.5,27.45]
[1723405028736,27.45,146.61,146.5,27.45]
[1723405028956,4.7754,146.59,146.5,27.45]
[1723405029846,27.45,146.61,146.5,27.45]
[1723405030049,27.45,146.59,146.49,18.4909]
[1723405030248,0.12549,146.55,146.49,18.4909]
[1723405030460,0.8291393,146.69,146.54,27.45]
[1723405030670,27.45,146.64,146.52,27.45]
[1723405030854,4.7753,146.59,146.5,34.4946]
[1723405031054,27.45,146.6,146.5,7.0446]
[1723405031248,27.45,146.62,146.5,34.4946]
[1723405031852,4.7749,146.6,146.5,34.4946]
[1723405032051,27.45,146.6,146.5,7.0446]
[1723405032254,27.45,146.58,146.5,7.0446]
[1723405032583,0.12549,146.58,146.5,7.0446]
[1723405032752,20.0,146.59,146.5,34.4946]
[1723405032955,45.0,146.58,146.5,34.4946]
[1723405033476,0.12549,146.59,146.5,34.4946]
[1723405033781,0.37647,146.59,146.5,34.4946]
[1723405034387,0.12549,146.58,146.5,34.4946]
[1723405034753,0.12549,146.57,146.5,7.0446]
[1723405035059,27.45,146.56,146.5,7.0446]
[1723405035257,45.50196,146.55,146.5,7.0446]
[1723405035455,0.12549,146.57,146.5,7.0446]
[1723405035784,45.50196,146.57,146.5,7.0446]
[1723405035990,27.45,146.54,146.46,7.4734]
[1723405036194,27.57549,146.52,146.46,7.4734]
[1723405036352,0.25098,146.51,146.46,7.4734]
[1723405036556,0.12549,146.52,146.46,7.4734]
[1723405037283,27.45,146.5,146.42,7.2527]
[1723405037590,45.50196,146.49,146.42,7.2527]
[1723405037883,65.50196,146.49,146.42,7.2527]
[1723405038085,0.12549,146.47,146.42,7.2527]
[1723405038282,0.12549,146.45,146.4,17.8095]
[1723405038486,65.50196,146.45,146.4,17.8095]
[1723405038675,32.2301,146.44,146.38,7.2527]
[1723405038987,0.12549,146.41,146.38,7.2527]
[1723405039159,0.12549,146.44,146.38,7.2527]
[1723405039370,0.37647,146.44,146.38,7.2527]
[1723405039669,0.12549,146.43,146.38,7.2527]
[1723405043085,0.12549,146.42,146.38,7.2527]
[1723405043269,0.37647,146.42,146.38,7.2527]
[1723405043472,0.12549,146.41,146.38,7.2527]
[1723405043674,45.12549,146.43,146.38,7.2527]
[1723405044160,0.12549,146.43,146.41,4.781]
[1723405044597,4.7787,146.49,146.39,27.45]
[1723405044774,27.45,146.5,146.39,28.81430127]
[1723405044967,32.2284,146.5,146.39,28.81430127]
[1723405045277,4.7784,146.5,146.41,27.45]
[1723405045593,34.52516159,146.52,146.41,27.45]
[1723405045764,4.7781,146.51,146.41,27.45]
[1723405046699,27.45,146.52,146.41,27.45]
[1723405047284,4.7785,146.49,146.41,27.45]
[1723405047486,4.7782,146.5,146.41,27.45]
[1723405047701,20.0,146.51,146.42,17.4261]
[1723405047874,7.07310376,146.54,146.43,27.45]
[1723405048200,4.7768,146.55,146.45,27.45]
[1723405048370,4.7769,146.54,146.45,27.45]
[1723405048998,27.45,146.54,146.43,27.45]
[1723405049196,20.0,146.53,146.43,27.45]
[1723405049498,4.7768,146.55,146.45,27.45]
[1723405049808,4.7762,146.56,146.45,27.45]
[1723405050500,27.45,146.57,146.47,27.45]
[1723405050501,32.2259,146.57,146.47,27.45]
[1723405050997,45.0,146.56,146.47,27.45]
[1723405051409,49.7762,146.56,146.47,27.45]
[1723405051777,20.37647,146.55,146.47,27.45]
[1723405051976,45.12549,146.54,146.47,27.45]
[1723405052574,45.0,146.54,146.48,7.2527]
[1723405053002,45.0,146.54,146.49,0.36367145]
[1723405053174,45.0,146.54,146.49,27.81367145]
[1723405053373,7.07286772,146.6,146.5,17.46164662]
[1723405053577,673.8246,146.61,146.5,17.098]
[1723405053578,45.0,146.59,146.5,17.098]
[1723405053900,49.7749,146.6,146.5,17.098]
[1723405054320,24.7752,146.59,146.5,17.098]
[1723405054514,45.0,146.58,146.5,17.098]
[1723405054682,20.50196,146.57,146.5,17.098]
[1723405054882,45.0,146.56,146.5,17.098]
[1723405055587,4.7749,146.6,146.51,28.81371432]
[1723405055800,4.90069,146.59,146.51,27.45]
[1723405056002,4.7752,146.59,146.5,17.098]
[1723405056189,0.12549,146.58,146.5,17.098]
[1723405056709,0.12549,146.56,146.5,17.098]
[1723405057005,0.12549,146.55,146.5,17.098]
[1723405057205,45.50196,146.55,146.5,17.098]
[1723405057603,0.50196,146.55,146.5,17.098]
[1723405057805,0.50196,146.55,146.48,7.2527]
[1723405058609,27.45,146.59,146.48,7.2527]
[1723405058814,20.25098,146.58,146.48,7.2527]
[1723405059186,25.02678,146.58,146.48,7.2527]
[1723405059813,0.12549,146.56,146.48,7.2527]
[1723405060199,0.25098,146.56,146.48,7.2527]
[1723405060396,0.12549,146.54,146.48,7.2527]
[1723405060616,0.25098,146.54,146.48,7.2527]
[1723405061618,0.12549,146.55,146.48,7.2527]
[1723405061822,0.50196,146.56,146.48,7.2527]
[1723405062120,5.27816,146.56,146.48,7.2527]
[1723405062418,0.12549,146.54,146.48,7.2527]
[1723405062616,0.50196,146.54,146.48,7.2527]
[1723405063695,0.12549,146.52,146.48,7.2527]
[1723405064228,45.37647,146.53,146.48,34.7027]
[1723405064229,45.12549,146.53,146.48,34.7027]
[1723405064430,27.45,146.59,146.48,34.7027]
[1723405064431,32.2252,146.59,146.48,34.7027]
[1723405064593,17.7547,146.62,146.5,27.45]
[1723405064594,20.0,146.58,146.5,27.45]
[1723405065227,20.0,146.6,146.5,27.45]
[1723405065823,27.45,146.59,146.48,34.7027]
[1723405066015,65.12549,146.58,146.48,34.7027]
[1723405066701,0.37647,146.57,146.48,34.7027]
[1723405067020,0.12549,146.56,146.5,27.45]
[1723405067315,20.0,146.58,146.5,27.45]
[1723405067510,4.7752,146.59,146.5,27.45]
[1723405067706,24.7749,146.6,146.5,27.45]
[1723405069020,5.02618,146.59,146.5,27.45]
[1723405069230,0.12549,146.57,146.5,27.45]
[1723405069404,0.25098,146.57,146.5,27.45]
[1723405070291,65.00196,146.58,146.5,27.45]
[1723405070599,20.0,146.58,146.5,27.45]
[1723405070832,27.45,146.61,146.5,27.45]
[1723405070999,27.45,146.63,146.52,27.45]
[1723405071725,4.7748,146.61,146.52,27.45]
[1723405071930,4.7749,146.6,146.5,27.45]
[1723405072222,27.45,146.61,146.5,27.45]
[1723405072429,0.12549,146.59,146.5,27.45]
[1723405072612,5.02618,146.59,146.5,27.45]
[1723405072806,45.0,146.58,146.5,27.45]
[1723405075223,45.25098,146.59,146.5,27.45]
[1723405076308,0.12549,146.58,146.48,34.7027]
[1723405076506,0.25098,146.58,146.48,34.7027]
[1723405076724,0.25098,146.57,146.48,34.7027]
[1723405078322,0.12549,146.56,146.48,7.2527]
[1723405078641,0.12549,146.54,146.48,7.2527]
[1723405078810,45.50196,146.54,146.48,7.2527]
[1723405080252,50.27886,146.54,146.48,7.2527]
[1723405080733,45.50196,146.54,146.48,7.2527]
[1723405080919,50.27886,146.54,146.48,7.2527]
[1723405081122,45.50196,146.54,146.48,7.2527]
[1723405081442,27.57549,146.51,146.44,7.2995]
[1723405081655,0.12549,146.49,146.44,7.2995]
[1723405081934,27.45,146.54,146.44,7.2995]
[1723405082143,45.50196,146.53,146.44,34.7495]
[1723405082832,32.2263,146.56,146.44,34.7495]
[1723405083220,24.7765,146.55,146.44,34.7495]
[1723405083526,4.7771,146.54,146.44,34.7495]
[1723405083738,32.2271,146.54,146.44,34.7495]
[1723405083941,4.90289,146.53,146.44,7.2995]
[1723405084157,4.90339,146.51,146.44,7.2995]
[1723405084342,0.12549,146.49,146.44,7.2995]
[1723405084656,27.45,146.48,146.42,18.1322]
[1723405084860,45.50196,146.47,146.42,18.1322]
[1723405085153,45.50196,146.47,146.4,7.2995]
[1723405085337,0.12549,146.45,146.4,7.2995]
[1723405085533,45.50196,146.45,146.4,7.2995]
[1723405086149,27.57549,146.52,146.4,34.7495]
[1723405086338,0.12549,146.5,146.4,34.7495]
[1723405086546,0.12549,146.5,146.42,27.45]
[1723405086751,27.45,146.54,146.44,27.45]
[1723405087351,4.7773,146.53,146.44,27.45]
[1723405087766,32.2269,146.54,146.44,27.45]
[1723405087939,4.90269,146.53,146.44,27.45]
[1723405088140,45.37647,146.52,146.42,27.45]
[1723405088346,0.12549,146.51,146.42,27.45]
[1723405089666,0.12549,146.51,146.4,7.2995]
[1723405089667,7.07674684,146.58,146.46,27.45]
[1723405089833,27.45,146.57,146.46,27.45]
[1723405090035,7.07674684,146.58,146.48,27.45]
[1723405090237,27.45,146.59,146.48,27.45]
[1723405090437,4.7762,146.56,146.47,7.3698]
[1723405090662,4.7765,146.55,146.47,7.3698]
[1723405090843,32.2265,146.55,146.47,7.3698]
[1723405091338,66.48915487,146.62,146.44,7.3698]
[1723405091339,32.2278,146.51,146.44,7.3698]
[1723405091558,45.50196,146.5,146.44,7.3698]
[1723405092963,45.25098,146.5,146.44,34.8198]
[1723405093263,45.0,146.5,146.44,34.8198]
[1723405094343,0.12549,146.49,146.44,7.3698]
[1723405094759,0.25098,146.49,146.44,7.3698]
[1723405095064,27.45,146.53,146.44,7.3698]
[1723405095278,312.7564,146.58,146.44,7.3698]
[1723405095279,27.45,146.57,146.44,34.8198]
[1723405095464,20.0,146.56,146.46,27.45]
[1723405097362,7.07408547,146.62,146.52,27.45]
[1723405097363,292.38048547,146.62,146.52,27.45]
[1723405097672,292.38048547,146.62,146.52,34.857]
[1723405097673,4.7748,146.6,146.52,34.857]
[1723405098163,4.7745,146.61,146.52,34.857]
[1723405098842,24.7745,146.61,146.52,34.857]
[1723405099261,45.50196,146.6,146.52,34.857]
[1723405099569,0.12549,146.58,146.52,34.857]
[1723405099776,45.50196,146.58,146.52,34.857]
[1723405100962,27.45,146.65,146.54,27.45]
[1723405101457,4.7745,146.62,146.53,27.45]
[1723405101863,32.2239,146.63,146.53,27.45]
[1723405102073,4.7743,146.62,146.53,27.45]
[1723405102446,24.7743,146.62,146.53,27.45]
[1723405102645,45.25098,146.61,146.53,27.45]
[1723405102862,0.25098,146.6,146.53,27.45]
[1723405103070,0.12549,146.59,146.53,27.45]
[1723405105177,0.12549,146.6,146.53,27.45]
[1723405105348,0.25098,146.6,146.53,27.45]
[1723405106475,0.25098,146.6,146.52,7.407]
[1723405106476,0.25098,146.59,146.52,7.407]
[1723405106673,0.12549,146.58,146.52,7.407]
[1723405106852,0.25098,146.58,146.52,7.407]
[1723405107166,0.12549,146.57,146.52,7.407]
[1723405107380,0.37647,146.57,146.52,7.407]
[1723405107558,0.12549,146.56,146.52,7.407]
[1723405107763,0.25098,146.56,146.52,7.407]
[1723405108350,0.25098,146.56,146.51,18.6294]
[1723405109970,45.25098,146.57,146.51,18.6294]
[1723405109971,45.0,146.57,146.51,18.6294]
[1723405110179,27.45,146.61,146.51,46.0794]
[1723405110898,32.2245,146.61,146.51,46.0794]
[1723405111058,27.45,146.63,146.51,46.0794]
[1723405111450,20.0,146.62,146.51,46.0794]
[1723405111653,24.7742,146.62,146.51,46.0794]
[1723405111875,4.7742,146.62,146.51,46.0794]
[1723405112471,7.07881241,146.67,146.54,27.45]
[1723405112677,7.07881241,146.67,146.6,27.45]
[1723405112857,4.7735,146.65,146.56,27.45]
[1723405113187,4.7732,146.65,146.56,27.45]
[1723405113675,4.773,146.66,146.56,27.45]
[1723405113986,26.683,146.66,146.57,21.91]
[1723405114178,0.12549,146.64,146.57,21.91]
[1723405115058,0.12549,146.64,146.58,0.38941519]
[1723405116162,20.0,146.67,146.58,0.38941519]
[1723405116468,24.7726,146.67,146.58,0.38941519]
[1723405116669,20.0,146.67,146.58,0.38941519]
[1723405116979,24.7726,146.67,146.58,0.38941519]
[1723405117365,0.25098,146.66,146.58,0.38941519]
[1723405117561,20.0,146.67,146.58,0.397156]
[1723405117975,20.0,146.67,146.59,27.39]
[1723405118175,20.0,146.67,146.6,0.39990526]
[1723405118985,0.12549,146.66,146.6,0.39990526]
[1723405119286,20.0,146.67,146.61,17.0545]
[1723405120679,45.12549,146.66,146.61,17.0545]
[1723405123693,7.3286397,146.68,146.61,17.0545]
[1723405123983,45.0,146.67,146.62,8.37598427]
[1723405124280,45.0,146.66,146.62,7.0129]
[1723405124485,45.0,146.67,146.62,7.0129]
[1723405125169,4.7736,146.64,146.58,7.0129]
[1723405125374,45.12549,146.63,146.58,7.0129]
[1723405125757,0.12549,146.62,146.58,7.0129]
[1723405127876,27.39,146.66,146.58,7.0129]
[1723405128186,65.50196,146.65,146.58,7.0129]
[1723405129755,27.39,146.64,146.58,7.0129]
[1723405129956,45.12549,146.63,146.58,7.0129]
[1723405131305,27.39,146.64,146.58,7.0129]
[1723405131767,20.25098,146.65,146.58,7.0129]
[1723405132061,45.12549,146.64,146.58,7.0129]
[1723405132769,45.12549,146.64,146.58,8.22089204]
[1723405133194,45.12549,146.64,146.58,7.0129]
[1723405133584,0.12549,146.63,146.58,7.0129]
[1723405133775,27.39,146.6,146.52,24.4265]
[1723405133980,45.25098,146.59,146.52,24.4265]
[1723405134270,27.64098,146.58,146.52,24.4265]
[1723405134483,27.39,146.58,146.52,24.4265]
[1723405134789,45.0,146.57,146.52,24.4265]
[1723405136884,0.25098,146.59,146.52,24.4265]
[1723405137083,45.25098,146.59,146.52,24.4265]
[1723405137483,0.12549,146.61,146.52,24.4265]
[1723405137792,0.12549,146.61,146.53,28.75458707]
[1723405137994,0.12549,146.61,146.54,21.92]
[1723405138197,0.50196,146.62,146.55,1.36444535]
[1723405138379,0.50196,146.62,146.54,21.92]
[1723405138975,65.50196,146.62,146.54,21.92]
[1723405139396,20.0,146.62,146.54,21.92]
[1723405139973,21.92,146.63,146.54,21.92]
[1723405140780,405.9831,146.68,146.56,21.92]
[1723405140781,21.92,146.65,146.56,21.92]
[1723405141713,21.92,146.67,146.57,7.2866]
[1723405141913,21.92,146.59,146.53,8.65091506]
[1723405142079,4.7762,146.56,146.53,12.56132648]